bitfinex-derivatives/quotes_SOLF0:USTF0_20241008
["timestamp","ask_amount","ask_price","bid_price","bid_amount"]
[1728408193841,22.46,142.64,142.56,2.7233]
[1728408194044,22.46,142.64,142.56,8.3433]
[1728408194255,22.46,142.64,142.57,3.42621607]
[1728408194442,25.9674,142.64,142.61,3.5078]
[1728408195054,20.3474,142.64,142.57,3.42621607]
[1728408195254,20.3474,142.64,142.62,3.5077]
[1728408196152,20.3474,142.64,142.61,3.5078]
[1728408196353,20.3468,142.66,142.57,16.84]
[1728408196654,0.12502,142.67,142.59,16.84]
[1728408196957,0.12502,142.67,142.62,3.5077]
[1728408197157,0.12502,142.67,142.6,7.0147]
[1728408197554,0.12502,142.67,142.66,3.5067]
[1728408198268,22.58502,142.73,142.67,3.5064]
[1728408198447,16.84,142.71,142.67,3.5064]
[1728408198647,3.5059,142.7,142.67,3.5064]
[1728408198855,3.5059,142.7,142.65,1.3899]
[1728408199160,22.58502,142.73,142.65,1.3899]
[1728408199463,3.5054,142.72,142.69,3.5058]
[1728408199664,22.58502,142.73,142.65,1.3899]
[1728408199848,16.84,142.71,142.65,1.3899]
[1728408200052,3.5058,142.7,142.67,3.5063]
[1728408200263,22.58502,142.73,142.65,1.3899]
[1728408200564,20.47012,142.73,142.71,3.5055]
[1728408200752,20.47012,142.73,142.65,18.2299]
[1728408200753,3.63012,142.73,142.65,18.2299]
[1728408201057,0.12502,142.73,142.65,18.2299]
[1728408201257,3.5053,142.72,142.69,3.5059]
[1728408202054,16.96502,142.73,142.65,18.2299]
[1728408202258,3.506,142.69,142.66,3.5066]
[1728408202556,22.46,142.71,142.65,1.3899]
[1728408202749,3.5063,142.68,142.65,1.3899]
[1728408203756,3.5063,142.68,142.65,4.8968]
[1728408204266,5.62,142.71,142.68,3.5061]
[1728408204267,9.1256,142.71,142.68,3.5061]
[1728408204655,9.1256,142.71,142.65,18.2299]
[1728408204863,9.1256,142.71,142.67,3.5063]
[1728408205159,9.25012,142.73,142.66,3.59180751]
[1728408205361,9.25012,142.73,142.7,3.5057]
[1728408205576,5.74502,142.73,142.67,22.46]
[1728408206077,9.25022,142.73,142.69,3.5058]
[1728408207157,0.12502,142.73,142.69,3.5058]
[1728408207463,3.5053,142.72,142.69,3.5058]
[1728408209070,0.12502,142.73,142.67,5.62]
[1728408209258,0.12502,142.73,142.68,1.3225]
[1728408209658,0.12502,142.73,142.72,3.5052]
[1728408213476,5.62,142.77,142.71,5.62]
[1728408213767,0.12502,142.79,142.72,2.7602]
[1728408213968,0.12502,142.79,142.73,26.94]
[1728408214161,0.12502,142.79,142.78,3.5038]
[1728408215374,0.12502,142.79,142.76,5.62]
[1728408215578,0.12502,142.79,142.76,9.1241]
[1728408215969,0.12502,142.79,142.74,3.44464257]
[1728408216169,0.12502,142.79,142.75,5.62]
[1728408216776,0.12502,142.79,142.78,3.5038]
[1728408218669,0.12502,142.79,142.77,3.504]
[1728408218876,0.12502,142.79,142.77,9.124]
[1728408219077,0.12502,142.79,142.77,3.504]
[1728408219770,0.12502,142.79,142.76,5.62]
[1728408219972,0.12502,142.79,142.78,3.5038]
[1728408222176,0.12502,142.79,142.76,3.5041]
[1728408222177,3.62872,142.79,142.76,3.5041]
[1728408222971,3.62872,142.79,142.77,3.5039]
[1728408224877,0.12502,142.79,142.77,3.5039]
[1728408225381,0.12502,142.79,142.77,3.5038]
[1728408225784,0.12502,142.79,142.75,5.62]
[1728408227081,0.12502,142.79,142.76,3.5042]
[1728408227277,0.12502,142.79,142.75,5.62]
[1728408227885,0.12502,142.79,142.77,3.5038]
[1728408229078,3.62862,142.79,142.77,3.5038]
[1728408229280,0.12502,142.79,142.75,3.5043]
[1728408229586,3.5041,142.77,142.75,3.5043]
[1728408233886,3.5038,142.78,142.76,3.5043]
[1728408234982,3.62862,142.79,142.73,5.62]
[1728408235286,3.62862,142.79,142.77,3.504]
[1728408235587,0.12502,142.79,142.77,3.504]
[1728408236188,3.62862,142.79,142.76,3.5041]
[1728408236388,3.62862,142.79,142.73,22.44]
[1728408236591,3.62862,142.79,142.74,3.5046]
[1728408236792,3.62862,142.79,142.73,22.44]
[1728408239487,3.62862,142.79,142.76,3.5041]
[1728408240283,0.12502,142.79,142.76,3.5041]
[1728408240590,3.5038,142.78,142.76,3.5041]
[1728408241787,0.12502,142.79,142.76,3.5041]
[1728408241985,3.62872,142.79,142.76,3.5041]
[1728408242300,3.62872,142.79,142.73,22.44]
[1728408242493,3.62872,142.79,142.77,3.5038]
[1728408243191,0.12502,142.79,142.78,3.5038]
[1728408244997,3.62852,142.79,142.77,3.5039]
[1728408245190,0.12502,142.79,142.77,3.5039]
[1728408245392,0.12502,142.79,142.75,16.82]
[1728408245595,0.12502,142.79,142.74,16.82]
[1728408245892,0.12502,142.79,142.73,5.62]
[1728408246695,0.12502,142.79,142.74,3.5047]
[1728408247086,3.5042,142.77,142.74,3.5047]
[1728408247281,0.12502,142.79,142.76,3.5041]
[1728408248288,0.12502,142.79,142.73,5.62]
[1728408248487,0.12502,142.79,142.74,20.28138239]
[1728408249191,0.12502,142.79,142.73,22.44]
[1728408249389,3.5039,142.78,142.74,3.5046]
[1728408249590,0.12502,142.79,142.73,22.44]
[1728408249987,0.12502,142.79,142.73,16.82]
[1728408250291,0.12502,142.79,142.74,9.15006339]
[1728408250591,0.12502,142.79,142.78,3.5038]
[1728408251996,0.12502,142.85,142.78,22.44]
[1728408252197,0.12502,142.85,142.81,16.82]
[1728408252398,0.12502,142.85,142.83,3.5024]
[1728408252987,0.12502,142.85,142.81,16.82]
[1728408253298,0.12502,142.85,142.83,16.82]
[1728408253489,0.12502,142.85,142.84,3.5023]
[1728408253689,3.5012,142.89,142.83,20.38050196]
[1728408254098,3.5012,142.89,142.83,3.56050196]
[1728408254698,7.08962,142.91,142.82,22.42]
[1728408254895,3.5014,142.88,142.82,22.42]
[1728408255197,7.08962,142.91,142.83,3.46642052]
[1728408255496,3.5013,142.89,142.83,3.46642052]
[1728408255697,3.5013,142.89,142.86,3.5018]
[1728408255896,3.5013,142.89,142.83,3.46642052]
[1728408256105,5.72502,142.91,142.82,22.42]
[1728408256407,3.5009,142.9,142.87,3.5014]
[1728408256901,0.12502,142.91,142.82,25.90777927]
[1728408257106,16.82,142.9,142.82,25.90777927]
[1728408257502,3.5016,142.87,142.84,3.5022]
[1728408257700,16.82,142.9,142.82,25.90777927]
[1728408257902,0.12502,142.91,142.84,16.82]
[1728408258108,3.5012,142.89,142.86,3.5018]
[1728408258307,0.12502,142.91,142.84,16.82]
[1728408259010,3.5011,142.89,142.86,3.5017]
[1728408260504,3.62572,142.91,142.88,3.5012]
[1728408260703,0.12502,142.91,142.84,16.82]
[1728408262210,3.5011,142.89,142.86,3.5017]
[1728408263617,3.5009,142.9,142.86,3.5017]
[1728408263822,0.12502,142.91,142.86,3.5017]
[1728408264026,0.12502,142.91,142.85,3.5019]
[1728408264220,3.5014,142.88,142.85,3.5019]
[1728408264519,3.5014,142.88,142.83,1.3765]
[1728408264520,16.82,142.88,142.83,1.3765]
[1728408264716,22.42,142.88,142.8,5.6]
[1728408265124,22.42,142.88,142.81,3.5029]
[1728408265315,3.5024,142.84,142.81,3.5029]
[1728408265829,22.42,142.88,142.82,3.5028]
[1728408266017,3.5022,142.85,142.82,3.5028]
[1728408266212,22.42,142.88,142.82,3.5028]
[1728408266523,22.42,142.88,142.8,5.6]
[1728408266725,3.5023,142.84,142.81,3.5029]
[1728408267719,3.5023,142.84,142.8,5.6]
[1728408267921,3.5023,142.84,142.82,3.5028]
[1728408268124,22.42,142.88,142.82,3.5028]
[1728408268332,3.5023,142.85,142.82,3.5028]
[1728408268820,3.5023,142.84,142.82,3.5028]
[1728408269021,3.5023,142.84,142.8,5.6]
[1728408269228,3.5023,142.84,142.81,3.5029]
[1728408273929,3.5022,142.85,142.82,3.5027]
[1728408274427,22.42,142.88,142.8,5.6]
[1728408274723,22.42,142.88,142.81,3.5028]
[1728408275229,3.5024,142.84,142.81,3.5028]
[1728408276430,10.76,142.86,142.81,10.76]
[1728408276627,10.76,142.89,142.84,10.76]
[1728408277023,3.5015,142.88,142.85,3.5019]
[1728408278925,7.0241,142.9,142.85,3.5019]
[1728408279427,16.8,142.89,142.8,16.8]
[1728408280132,3.5024,142.84,142.8,5.6]
[1728408280519,3.5024,142.84,142.81,3.5029]
[1728408282731,3.5024,142.84,142.82,3.5028]
[1728408283132,16.8,142.87,142.82,3.5028]
[1728408283133,3.5021,142.85,142.82,3.5028]
[1728408284336,3.5023,142.84,142.82,3.5028]
[1728408285225,3.5023,142.84,142.81,3.5029]
[1728408286541,3.5023,142.84,142.82,3.5028]
[1728408288334,3.5026,142.83,142.8,5.6]
[1728408288538,16.8,142.87,142.8,5.6]
[1728408289041,3.5021,142.85,142.82,3.5026]
[1728408290444,3.5023,142.84,142.82,3.5026]
[1728408291942,20.32998396,142.87,142.79,2.81082]
[1728408292339,5.6,142.86,142.79,2.81082]
[1728408292537,3.5025,142.83,142.79,2.81082]
[1728408292938,3.5025,142.83,142.81,3.5029]
[1728408293140,3.5022,142.85,142.79,2.81082]
[1728408293846,3.5023,142.84,142.82,3.5027]
[1728408295942,9.1019,142.86,142.84,3.5022]
[1728408296337,3.5019,142.86,142.84,3.5022]
[1728408296533,3.5019,142.86,142.83,3.5024]
[1728408298248,22.4,142.89,142.84,3.5021]
[1728408298443,5.6,142.89,142.84,3.5021]
[1728408298644,3.5016,142.88,142.85,3.502]
[1728408299738,3.5017,142.87,142.82,16.8]
[1728408299945,16.8,142.89,142.79,25.21082]
[1728408300542,10.76,142.86,142.8,10.76]
[1728408300748,10.76,142.86,142.79,1.48402]
[1728408300749,10.76,142.83,142.79,1.48402]
[1728408300939,14.2627,142.83,142.8,3.5032]
[1728408301540,10.76,142.85,142.8,10.76]
[1728408301745,16.36,142.86,142.82,10.76]
[1728408302546,10.76,142.88,142.83,10.76]
[1728408302753,16.36,142.88,142.83,10.76]
[1728408303051,16.36,142.88,142.8,1.3538]
[1728408303052,10.88502,142.91,142.87,10.76]
[1728408303653,10.88502,142.91,142.83,1.3703]
[1728408303654,10.76,142.9,142.86,14.2616]
[1728408304243,0.12502,142.91,142.87,3.5015]
[1728408305244,3.501,142.9,142.87,3.5015]
[1728408305752,3.5009,142.9,142.86,14.2616]
[1728408306051,3.5009,142.9,142.86,10.76]
[1728408306352,3.5009,142.9,142.87,3.5015]
[1728408307248,0.12502,142.91,142.85,10.76]
[1728408307452,10.76,142.88,142.84,10.76]
[1728408307657,10.76,142.88,142.83,6.9703]
[1728408307843,3.5017,142.87,142.84,3.5022]
[1728408308444,14.2614,142.88,142.85,3.502]
[1728408308648,10.76,142.89,142.85,10.76]
[1728408308852,10.76,142.87,142.83,1.3703]
[1728408309051,10.76,142.86,142.81,17.8066]
[1728408310651,3.5021,142.85,142.82,3.5027]
[1728408311150,3.5024,142.84,142.81,10.5496]
[1728408311355,10.76,142.86,142.81,7.0466]
[1728408311851,3.5022,142.85,142.82,3.5028]
[1728408312451,14.262,142.86,142.83,3.5025]
[1728408312651,10.76,142.86,142.81,12.2066]
[1728408313757,3.5022,142.85,142.82,3.5027]
[1728408314857,14.2619,142.86,142.83,3.5025]
[1728408315058,10.76,142.87,142.81,12.2066]
[1728408315251,10.76,142.88,142.82,10.76]
[1728408315451,14.2615,142.88,142.85,3.5019]
[1728408316058,19.8612,142.89,142.86,3.5018]
[1728408316360,0.12502,142.91,142.86,10.76]
[1728408316361,10.88502,142.91,142.86,10.76]
[1728408316561,3.5012,142.89,142.86,3.5017]
[1728408316764,10.88502,142.91,142.86,10.76]
[1728408316962,10.76,142.9,142.85,10.76]
[1728408317162,10.76,142.88,142.85,3.5019]
[1728408317365,10.76,142.88,142.83,17.7198]
[1728408317855,14.2614,142.88,142.85,3.5019]
[1728408318956,3.5014,142.88,142.85,3.5019]
[1728408319557,3.5014,142.88,142.84,10.76]
[1728408319857,14.2612,142.89,142.84,10.76]
[1728408320052,10.76,142.89,142.84,10.76]
[1728408320253,3.5013,142.88,142.85,3.5019]
[1728408321861,3.5013,142.88,142.84,10.76]
[1728408322061,14.2612,142.89,142.84,10.76]
[1728408322451,0.12502,142.97,142.88,10.76]
[1728408322758,0.12502,142.97,142.95,10.76]
[1728408323157,0.12502,142.97,142.89,1.3834]
[1728408323353,0.12502,142.97,142.94,3.4996]
[1728408323560,0.12502,142.97,142.93,10.76]
[1728408323959,0.12502,142.97,142.95,3.4994]
[1728408324665,0.12502,142.97,142.91,16.8]
[1728408324858,0.12502,142.97,142.93,3.5]
[1728408325959,3.62422,142.97,142.93,3.5]
[1728408326463,0.12502,142.97,142.92,9.1002]
[1728408326654,3.4995,142.96,142.92,9.1002]
[1728408326963,0.12502,142.97,142.92,3.5002]
[1728408327367,0.12502,142.97,142.91,5.6]
[1728408327559,0.12502,142.97,142.93,3.5]
[1728408327757,3.62432,142.97,142.93,3.5]
[1728408328463,0.12502,142.97,142.91,5.6]
[1728408329076,3.4997,142.95,142.91,5.6]
[1728408329258,0.12502,142.97,142.91,5.6]
[1728408329563,3.4995,142.96,142.92,3.5002]
[1728408330468,0.12502,142.97,142.9,16.8]
[1728408330664,0.12502,142.97,142.89,6.9634]
[1728408330665,3.5,142.94,142.89,6.9634]
[1728408331166,3.5,142.94,142.91,3.5004]
[1728408331367,3.4997,142.95,142.91,3.5004]
[1728408331568,3.4997,142.95,142.89,6.9634]
[1728408331766,5.70502,142.97,142.94,3.4998]
[1728408332067,5.70502,142.97,142.91,16.8]
[1728408332268,0.12502,142.97,142.91,16.8]
[1728408334078,0.12502,142.97,142.96,3.4994]
[1728408336867,1.45242,143.03,142.96,16.8]
[1728408337267,4.95022,143.03,143.0,3.4983]
[1728408337470,1.45242,143.03,142.96,16.8]
[1728408338378,3.4981,143.02,142.99,3.4985]
[1728408338571,1.45242,143.03,142.96,16.8]
[1728408338772,16.8,143.02,142.95,2.7632]
[1728408339078,16.8,143.02,142.97,3.499]
[1728408339079,3.4985,143.0,142.97,3.499]
[1728408339470,16.8,143.02,142.95,2.7632]
[1728408340475,3.4985,143.0,142.97,3.4989]
[1728408341363,16.8,143.02,142.96,3.4992]
[1728408341568,3.4986,142.99,142.96,3.4992]
[1728408341764,16.8,143.02,142.95,2.7632]
[1728408342170,3.4988,142.99,142.96,3.4993]
[1728408343072,16.8,143.02,142.95,1.3249]
[1728408343381,0.12502,143.03,142.95,1.3249]
[1728408343773,16.8,143.02,142.95,1.3249]
[1728408344281,3.4988,142.99,142.95,4.8243]
[1728408344580,3.4988,142.99,142.95,15.5743]
[1728408344778,3.4991,142.98,142.94,9.0797]
[1728408344984,3.4991,142.98,142.94,19.8297]
[1728408345576,3.4991,142.98,142.95,3.4996]
[1728408346279,10.75,142.99,142.95,3.4996]
[1728408346682,3.4991,142.98,142.95,3.4996]
[1728408347180,10.75,142.99,142.94,19.8297]
[1728408347375,3.4991,142.97,142.94,19.8297]
[1728408349182,3.4991,142.97,142.95,3.4996]
[1728408350186,10.75,142.99,142.92,2.7155]
[1728408350485,0.12502,143.03,142.92,3.5002]
[1728408350486,10.75,142.96,142.92,3.5002]
[1728408350988,10.75,142.96,142.93,3.5]
[1728408350989,3.4997,142.95,142.93,3.5]
[1728408351488,14.2495,142.96,142.93,3.5]
[1728408353996,3.4997,142.95,142.92,3.5002]
[1728408354895,3.4997,142.95,142.93,3.5001]
[1728408356487,3.4997,142.95,142.92,3.5002]
[1728408358098,10.75,142.97,142.92,3.5002]
[1728408358603,3.4998,142.95,142.92,3.5002]
[1728408358994,10.75,142.95,142.91,0.12502]
[1728408359602,3.5002,142.93,142.91,0.12502]
[1728408359792,1.3202,142.99,142.91,0.12502]
[1728408359793,10.75,142.94,142.91,0.12502]
[1728408360193,3.5,142.94,142.91,3.62562]
[1728408360397,10.75,142.95,142.91,3.62562]
[1728408360999,5.58,142.96,142.91,10.87502]
[1728408361200,5.58,142.96,142.92,3.5002]
[1728408361595,3.4997,142.95,142.92,3.5002]
[1728408361807,5.58,142.96,142.94,3.4998]
[1728408362113,1.3202,142.99,142.94,3.4998]
[1728408362114,3.4992,142.97,142.94,3.4998]
[1728408362508,10.75,142.98,142.94,3.4998]
[1728408362714,3.4994,142.96,142.93,10.75]
[1728408362905,3.4994,142.96,142.93,14.25]
[1728408364109,10.75,142.98,142.93,10.75]
[1728408364410,10.75,142.98,142.91,5.70502]
[1728408364411,16.33,143.01,142.96,10.75]
[1728408364919,10.75,143.02,142.97,10.75]
[1728408365313,0.12502,143.03,142.99,10.75]
[1728408365805,10.75,143.01,142.95,5.58]
[1728408366001,3.4985,143.0,142.96,10.75]
[1728408366604,3.4985,143.0,142.97,3.499]
[1728408366806,3.4986,142.99,142.96,10.75]
[1728408367220,10.75,143.02,142.96,10.75]
[1728408367517,3.4985,143.0,142.96,10.75]
[1728408368011,3.4985,143.0,142.97,3.4989]
[1728408368404,3.4982,143.01,142.98,3.4988]
[1728408368604,0.12502,143.03,142.98,10.75]
[1728408368809,0.12502,143.03,143.0,10.75]
[1728408369017,3.62282,143.03,143.0,14.2483]
[1728408370808,0.12502,143.03,143.0,10.75]
[1728408371010,3.4979,143.02,143.0,10.75]
[1728408371705,3.4979,143.02,142.99,3.4984]
[1728408371706,3.4979,143.02,142.99,14.2484]
[1728408373113,3.62282,143.03,143.0,14.2483]
[1728408373715,3.62282,143.03,143.01,14.248]
[1728408373716,0.12502,143.03,143.01,14.248]
[1728408374316,0.12502,143.03,143.02,14.2479]
[1728408374715,0.12502,143.03,143.01,10.75]
[1728408374913,0.12502,143.03,142.99,13.4351]
[1728408375115,10.87502,143.03,142.99,13.4351]
[1728408375516,335.0,143.12,143.01,10.75]
[1728408375717,10.75,143.08,143.02,10.75]
[1728408376219,3.4969,143.06,143.02,10.75]
[1728408376520,10.75,143.07,143.02,10.75]
[1728408376720,10.75,143.05,143.01,16.33]
[1728408377117,3.4978,143.03,142.99,2.6851]
[1728408377312,10.75,143.04,142.98,15.6202]
[1728408377516,10.75,143.02,142.98,15.6202]
[1728408377809,3.4983,143.01,142.98,15.6202]
[1728408378013,10.75,143.03,142.99,14.2484]
[1728408378214,10.75,143.03,142.99,10.75]
[1728408378517,14.2477,143.03,142.99,10.75]
[1728408378721,14.2477,143.03,143.0,3.4982]
[1728408379322,3.4979,143.02,143.0,3.4982]
[1728408380023,10.75,143.02,142.98,1.3715]
[1728408380419,3.4984,143.0,142.98,1.3715]
[1728408382117,3.4989,142.98,142.97,0.12502]
[1728408382429,10.75,143.01,142.97,0.12502]
[1728408382816,3.4988,142.99,142.97,0.12502]
[1728408383019,10.75,143.01,142.97,0.12502]
[1728408383824,3.4985,143.0,142.98,3.4988]
[1728408384524,3.4982,143.01,142.98,3.4988]
[1728408385829,3.4987,142.99,142.97,0.12502]
[1728408386525,3.4984,143.0,142.97,3.62402]
[1728408387221,16.33,143.03,142.98,10.75]
[1728408387418,3.498,143.02,142.99,14.2486]
[1728408387923,10.75,143.05,143.0,10.75]
[1728408388114,16.33,143.06,143.01,10.75]
[1728408389027,3.4976,143.04,143.0,10.75]
[1728408389727,10.75,143.05,143.0,10.75]
[1728408390029,10.75,143.05,143.0,14.2482]
[1728408390525,10.75,143.04,143.0,3.4982]
[1728408391236,3.4978,143.03,143.0,3.4982]
[1728408394226,3.4978,143.03,143.0,14.2482]
[1728408396133,3.4982,143.01,142.99,3.4985]
[1728408396332,10.75,143.04,142.99,3.4985]
[1728408397035,10.75,143.04,142.98,4.9036]
[1728408397342,10.75,143.01,142.97,0.12502]
[1728408398028,3.4984,143.0,142.97,3.62392]
[1728408398433,16.33,143.02,142.97,3.62392]
[1728408398434,10.75,143.01,142.97,3.62392]
[1728408398649,3.4986,142.99,142.97,3.62392]
[1728408398938,3.4986,142.99,142.97,0.12502]
[1728408400539,3.4985,143.0,142.97,3.62412]
[1728408401237,3.4985,143.0,142.97,0.12502]
[1728408401434,3.4985,143.0,142.98,3.4988]
[1728408401634,3.4985,143.0,142.97,0.12502]
[1728408402032,3.4985,143.0,142.97,3.62402]
[1728408402234,3.4985,143.0,142.97,14.37402]
[1728408402639,16.33,143.02,142.97,10.87502]
[1728408402844,3.4982,143.01,142.98,3.4987]
[1728408404047,3.4984,143.0,142.97,14.37402]
[1728408404845,3.4984,143.0,142.97,3.62402]
[1728408407843,3.4989,142.98,142.97,0.12502]
[1728408408845,14.2489,142.98,142.97,0.12502]
[1728408409742,3.5,142.94,142.92,16.33]
[1728408409945,10.75,142.96,142.92,16.33]
[1728408410148,10.75,142.96,142.92,5.58]
[1728408410342,3.5001,142.93,142.92,5.58]
[1728408410649,10.75,142.96,142.92,5.58]
[1728408410842,3.4999,142.94,142.92,5.58]
[1728408411153,5.58,142.98,142.91,0.12502]
[1728408411154,10.75,142.95,142.91,0.12502]
[1728408411342,10.75,142.93,142.91,0.12502]
[1728408411547,3.5003,142.92,142.91,0.12502]
[1728408412338,14.2503,142.92,142.91,0.12502]
[1728408416443,3.5018,142.87,142.85,0.12502]
[1728408416649,10.75,142.87,142.85,0.12502]
[1728408417050,10.75,142.86,142.85,0.12502]
[1728408417656,14.2518,142.86,142.85,0.12502]
[1728408417954,3.5018,142.86,142.85,0.12502]
[1728408420351,10.75,142.87,142.85,0.12502]
[1728408420555,10.75,142.88,142.85,3.62702]
[1728408420758,10.75,142.88,142.85,0.12502]
[1728408422452,10.75,142.88,142.86,3.5017]
[1728408422655,19.8309,142.9,142.85,10.87502]
[1728408422957,1.435,142.93,142.87,3.5014]
[1728408422958,10.75,142.91,142.87,3.5014]
[1728408423157,10.75,142.91,142.87,10.75]
[1728408423966,14.2507,142.91,142.88,3.5012]
[1728408424149,5.58,142.92,142.86,1.4123]
[1728408424150,10.75,142.9,142.86,1.4123]
[1728408424751,14.251,142.9,142.86,4.9139]
[1728408424963,10.75,142.9,142.86,4.9139]
[1728408426459,3.5011,142.89,142.86,4.9139]
[1728408426961,14.2513,142.88,142.85,3.62702]
[1728408427851,10.75,142.9,142.85,0.12502]
[1728408428062,3.5012,142.89,142.86,3.5018]
[1728408428656,1.435,142.93,142.85,10.87502]
[1728408428657,10.75,142.91,142.85,10.87502]
[1728408428957,10.75,142.92,142.87,10.75]
[1728408429158,10.75,142.91,142.85,10.87502]
[1728408429555,3.5012,142.89,142.86,3.5017]
[1728408429756,10.75,142.91,142.85,10.87502]
[1728408429958,10.75,142.91,142.87,10.75]
[1728408430264,14.2507,142.91,142.88,3.5012]
[1728408432161,10.75,142.91,142.85,10.87502]
[1728408432861,10.75,142.89,142.85,0.12502]
[1728408433167,14.2518,142.86,142.85,0.12502]
[1728408433854,10.75,142.86,142.85,0.12502]
[1728408434262,3.5017,142.87,142.85,0.12502]
[1728408437763,10.75,142.87,142.85,0.12502]
[1728408437967,3.5018,142.86,142.85,0.12502]
[1728408438861,10.75,142.88,142.86,3.5016]
[1728408439167,10.75,142.88,142.85,0.12502]
[1728408439370,14.2514,142.88,142.85,0.12502]
[1728408439871,14.2514,142.88,142.85,3.62692]
[1728408441266,10.75,142.9,142.85,10.87502]
[1728408441463,10.75,142.89,142.85,0.12502]
[1728408441870,14.2513,142.89,142.86,3.5018]
[1728408442263,10.75,142.87,142.85,0.12502]
[1728408443968,3.5018,142.86,142.85,0.12502]
[1728408445180,14.2517,142.87,142.85,0.12502]
[1728408445567,14.2517,142.87,142.85,3.62702]
[1728408445967,10.75,142.86,142.85,0.12502]
[1728408446171,14.2518,142.86,142.85,0.12502]
[1728408450475,3.5027,142.83,142.8,3.5032]
[1728408450673,10.75,142.81,142.79,0.12502]
[1728408451070,10.75,142.81,142.79,3.62842]
[1728408451071,14.2531,142.81,142.79,3.62842]
[1728408452175,14.2531,142.81,142.79,0.12502]
[1728408452176,10.75,142.81,142.79,0.12502]
[1728408453178,14.2532,142.81,142.79,3.62852]
[1728408455685,10.75,142.8,142.79,0.12502]
[1728408455876,19.8133,142.8,142.79,0.12502]
[1728408456078,19.8133,142.8,142.79,1e-08]
[1728408456379,16.31,142.8,142.73,0.12502]
[1728408456578,14.2545,142.76,142.73,0.12502]
[1728408457080,14.2545,142.76,142.73,3.62982]
[1728408457875,14.2545,142.76,142.74,3.5047]
[1728408459286,3.5045,142.75,142.73,3.63002]
[1728408459884,3.5045,142.75,142.73,0.12502]
[1728408460084,10.75,142.76,142.73,3.63002]
[1728408460289,14.2543,142.76,142.73,3.63002]
[1728408461686,10.75,142.76,142.74,3.5047]
[1728408464081,14.2543,142.76,142.73,0.12502]
[1728408464286,10.75,142.76,142.73,0.12502]
[1728408465281,3.5046,142.75,142.73,3.62982]
[1728408465681,10.75,142.76,142.73,0.12502]
[1728408465989,14.2545,142.76,142.73,3.62992]
[1728408467185,14.2545,142.76,142.74,3.5047]
[1728408468383,10.75,142.76,142.74,3.5047]
[1728408469489,1.3637,142.79,142.73,10.87502]
[1728408469490,14.2539,142.78,142.73,10.87502]
[1728408470387,10.75,142.79,142.75,10.75]
[1728408470587,16.31,142.8,142.75,10.75]
[1728408471094,10.75,142.79,142.77,3.5038]
[1728408472300,10.75,142.79,142.78,3.5038]
[1728408480902,10.75,142.79,142.74,10.75]
[1728408481097,10.75,142.78,142.77,3.5039]
[1728408484995,3.5029,142.82,142.8,3.5033]
[1728408485200,14.2529,142.82,142.8,3.5033]
[1728408485395,10.75,142.82,142.8,3.5033]